fUST/lending_fUST_20250610
["ID","MTS","AMOUNT","RATE_DAILY","PERIOD"]
[365149937,1749496242821,-329.88261247,0.00021369,4]
[365149938,1749496242830,-460.0,0.00021369,4]
[365149939,1749496242840,-410.0,0.00021369,4]
[365149940,1749496242849,-460.0,0.00021369,4]
[365149941,1749496242859,-460.0,0.00021369,4]
[365149942,1749496242868,-460.0,0.00021369,4]
[365149943,1749496242878,-460.0,0.00021369,4]
[365149944,1749496242888,-460.0,0.00021369,4]
[365149945,1749496242898,-476.54650798,0.00021369,4]
[365149946,1749496242907,-460.0,0.00021369,4]
[365149947,1749496242919,-150.37555558,0.00021369,4]
[365149948,1749496242929,-395.78836152,0.00021369,4]
[365149949,1749496242938,-420.0,0.00021369,4]
[365149951,1749496242948,-410.0,0.00021369,4]
[365149953,1749496242957,-420.0,0.00021369,4]
[365149955,1749496242966,-460.0,0.00021369,4]
[365149957,1749496242975,-460.0,0.00021369,4]
[365149959,1749496242985,-440.0,0.00021369,4]
[365149961,1749496242994,-460.0,0.00021369,2]
[365149963,1749496243004,-460.0,0.00021369,4]
[365149965,1749496243013,-460.0,0.00021369,4]
[365149977,1749496243112,-350.0,0.00021369,4]
[365149979,1749496243122,-420.0,0.00021369,4]
[365149981,1749496243132,-460.0,0.00021369,4]
[365149983,1749496243144,-420.0,0.00021369,4]
[365149985,1749496243154,-420.0,0.00021369,4]
[365149987,1749496243163,-420.0,0.00021369,4]
[365149989,1749496243172,-400.0,0.00021369,4]
[365149991,1749496243182,-341.35321681,0.00021369,4]
[365149993,1749496243191,-460.0,0.00021369,4]
[365149995,1749496243201,-410.0,0.00021369,4]
[365149997,1749496243210,-424.96358829,0.00021369,4]
[365149999,1749496243219,-460.0,0.00021369,4]
[365150002,1749496243230,-460.0,0.00021369,4]
[365150004,1749496243243,-210.0,0.00021369,4]
[365150006,1749496243252,-460.0,0.00021369,4]
[365150008,1749496243262,-420.0,0.00021369,4]
[365150010,1749496243271,-420.0,0.00021369,4]
[365150012,1749496243281,-460.0,0.00021369,4]
[365150014,1749496243291,-460.0,0.00021369,4]
[365150016,1749496243300,-420.0,0.00021369,4]
[365150018,1749496243310,-415.55280609,0.00021369,4]
[365150020,1749496243319,-578.20090779,0.00021369,4]
[365150022,1749496243328,-433.64940903,0.00021369,4]
[365150024,1749496243338,-460.0,0.00021369,4]
[365150026,1749496243348,-431.16221496,0.00021369,4]
[365150028,1749496243358,-410.0,0.00021369,4]
[365150030,1749496243367,-426.74532932,0.00021369,4]
[365150032,1749496243377,-460.0,0.00021369,4]
[365150034,1749496243386,-410.0,0.00021369,4]
[365150036,1749496243396,-410.0,0.00021369,4]
[365150038,1749496243406,-196.68228915,0.00021369,4]
[365150040,1749496243415,-460.0,0.00021369,4]
[365150042,1749496243425,-440.0,0.00021369,4]
[365150044,1749496243434,-460.0,0.00021369,4]
[365150046,1749496243444,-440.0,0.00021369,4]
[365150048,1749496243454,-327.38861031,0.00021369,4]
[365150050,1749496243463,-460.0,0.00021369,4]
[365150052,1749496243472,-460.0,0.00021369,4]
[365150054,1749496243481,-420.0,0.00021369,4]
[365150056,1749496243490,-460.0,0.00021369,4]
[365150058,1749496243500,-460.0,0.00021369,4]
[365150060,1749496243509,-460.0,0.00021369,4]
[365150062,1749496243520,-440.0,0.00021369,4]
[365150064,1749496243530,-420.0,0.00021369,4]
[365150066,1749496243540,-380.0,0.00021369,4]
[365150068,1749496243549,-460.0,0.00021369,4]
[365150070,1749496243559,-420.0,0.00021369,4]
[365150072,1749496243568,-551.51119975,0.00021369,4]
[365150074,1749496243578,-460.0,0.00021369,4]
[365150076,1749496243588,-221.07240354,0.00021369,4]
[365150078,1749496243597,-460.0,0.00021369,4]
[365150080,1749496243607,-460.0,0.00021369,4]
[365150082,1749496243616,-1473.1,0.00021369,4]
[365150084,1749496243626,-460.0,0.00021369,4]
[365150086,1749496243636,-460.0,0.00021369,4]
[365150088,1749496243645,-460.0,0.00021369,4]
[365150090,1749496243655,-1513.21,0.00021369,4]
[365150092,1749496243664,-390.0,0.00021369,4]
[365150094,1749496243673,-1123.37,0.00021369,4]
[365150096,1749496243682,-598.28,0.00021369,4]
[365150098,1749496243691,-340.0,0.00021369,4]
[365150100,1749496243700,-420.0,0.00021369,4]
[365150102,1749496243708,-2145.91,0.00021369,4]
[365150104,1749496243717,-460.0,0.00021369,4]
[365150106,1749496243727,-440.0,0.00021369,4]
[365150108,1749496243736,-460.0,0.00021369,4]
[365150110,1749496243746,-460.0,0.00021369,4]
[365150112,1749496243755,-460.0,0.00021369,4]
[365150114,1749496243764,-460.0,0.00021369,4]
[365150116,1749496243773,-778.46,0.00021369,4]
[365150118,1749496243782,-460.0,0.00021369,4]
[365150120,1749496243792,-460.0,0.00021369,4]
[365150122,1749496243801,-420.0,0.00021369,4]
[365150124,1749496243810,-460.0,0.00021369,4]
[365150126,1749496243820,-330.0,0.00021369,4]
[365150128,1749496243829,-685.77,0.00021369,4]
[365150130,1749496243838,-246.81774683,0.00021369,2]
[365150132,1749496243848,-460.0,0.00021369,4]
[365150134,1749496243857,-410.0,0.00021369,4]
[365150136,1749496243867,-460.0,0.00021369,4]
[365150138,1749496243876,-460.0,0.00021369,4]
[365150140,1749496243885,-460.0,0.00021369,4]
[365150142,1749496243895,-1049.59,0.00021369,4]
[365150144,1749496243905,-410.0,0.00021369,4]
[365150146,1749496243914,-396.95083179,0.00021369,4]
[365150148,1749496243923,-460.0,0.00021369,4]
[365150150,1749496243933,-1126.7,0.00021369,4]
[365150152,1749496243942,-460.0,0.00021369,4]
[365150154,1749496243951,-904.42,0.00021369,4]
[365150156,1749496243960,-420.0,0.00021369,4]
[365150158,1749496243969,-460.0,0.00021369,4]
[365150160,1749496243978,-319.73989259,0.00021369,4]
[365150162,1749496243988,-420.0,0.00021369,4]
[365150163,1749496243997,-440.0,0.00021369,4]
[365150165,1749496244006,-460.0,0.00021369,4]
[365150167,1749496244015,-460.0,0.00021369,4]
[365150169,1749496244024,-460.0,0.00021369,4]
[365150171,1749496244033,-460.0,0.00021369,4]
[365150173,1749496244042,-460.0,0.00021369,4]
[365150175,1749496244051,-617.48,0.00021369,4]
[365150177,1749496244060,-460.0,0.00021369,4]
[365150180,1749496244071,-460.0,0.00021369,4]
[365150182,1749496244080,-460.0,0.00021369,4]
[365150184,1749496244090,-562.47,0.00021369,4]
[365150186,1749496244100,-2182.65,0.00021369,4]
[365150188,1749496244109,-460.0,0.00021369,4]
[365150190,1749496244119,-741.01,0.00021369,4]
[365150192,1749496244129,-460.0,0.00021369,4]
[365150194,1749496244145,-410.0,0.00021369,4]
[365150196,1749496244155,-460.0,0.00021369,4]
[365150198,1749496244164,-460.0,0.00021369,4]
[365150200,1749496244174,-514.43159463,0.00021369,4]
[365150202,1749496244183,-460.0,0.00021369,4]
[365150204,1749496244193,-460.0,0.00021369,4]
[365150206,1749496244202,-1300.38,0.00021369,4]
[365150208,1749496244213,-460.0,0.00021369,4]
[365150210,1749496244222,-420.0,0.00021369,4]
[365150212,1749496244231,-460.0,0.00021369,4]
[365150214,1749496244241,-2211.48,0.00021369,4]
[365150216,1749496244250,-460.0,0.00021369,4]
[365150218,1749496244260,-460.0,0.00021369,4]
[365150220,1749496244269,-460.0,0.00021369,4]
[365150222,1749496244279,-460.0,0.00021369,4]
[365150224,1749496244288,-420.0,0.00021369,4]
[365150226,1749496244297,-460.0,0.00021369,4]
[365150228,1749496244307,-460.0,0.00021369,4]
[365150230,1749496244316,-460.0,0.00021369,4]
[365150232,1749496244325,-440.0,0.00021369,4]
[365150234,1749496244335,-2183.93,0.00021369,4]
[365150236,1749496244345,-556.36,0.00021369,4]
[365150238,1749496244354,-589.97,0.00021369,4]
[365150240,1749496244364,-14493.64,0.00021369,4]
[365150242,1749496244373,-460.0,0.00021369,4]
[365150244,1749496244386,-428.68,0.00021369,4]
[365150246,1749496244398,-2815.17,0.00021369,4]
[365150249,1749496244408,-460.0,0.00021369,4]
[365150251,1749496244418,-580.65,0.00021369,4]
[365150253,1749496244429,-2252.96,0.00021369,4]
[365150254,1749496244440,-460.0,0.00021369,4]
[365150257,1749496244449,-460.0,0.00021369,4]
[365150258,1749496244459,-460.0,0.00021369,4]
[365150261,1749496244470,-460.0,0.00021369,4]
[365150263,1749496244479,-500.0,0.00021369,4]
[365150266,1749496244489,-500.0,0.00021373,2]
[365150269,1749496244498,-500.0,0.00021373,2]
[365150271,1749496244507,-500.0,0.00021373,2]
[365150273,1749496244517,-500.0,0.00021373,2]
[365150275,1749496244527,-258.45866651,0.00021373,2]
[365150277,1749496244536,-500.0,0.00021373,2]
[365150279,1749496244546,-500.0,0.00021373,2]
[365150281,1749496244555,-735.48935513,0.00021506,2]
[365150283,1749496244564,-1564.36874902,0.00021543,2]
[365150285,1749496244574,-2043.27,0.0002161,2]
[365150287,1749496244583,-511.45340538,0.00021621,2]
[365150289,1749496244593,-1000.0,0.00021621,2]
[365150291,1749496244602,-500.0,0.00021642,4]
[365150293,1749496244612,-500.0,0.00021642,4]
[365150295,1749496244621,-500.0,0.00021642,4]
[365150297,1749496244630,-500.0,0.00021642,4]
[365150299,1749496244639,-460.0,0.00021643,4]
[365150301,1749496244649,-380.0,0.00021643,4]
[365150303,1749496244658,-460.0,0.00021643,4]
[365150304,1749496244668,-225.9898967,0.00021643,4]
[365150307,1749496244678,-350.0,0.00021643,4]
[365150309,1749496244688,-380.0,0.00021643,4]
[365150310,1749496244698,-400.0,0.00021643,4]
[365150313,1749496244708,-460.0,0.00021643,4]
[365150315,1749496244718,-350.0,0.00021643,4]
[365150317,1749496244727,-382.35045009,0.00021643,4]
[365150319,1749496244736,-460.0,0.00021643,4]
[365150321,1749496244746,-460.0,0.00021643,4]
[365150323,1749496244755,-460.0,0.00021643,4]
[365150325,1749496244764,-320.0,0.00021643,4]
[365150327,1749496244774,-526.78093671,0.00021643,4]
[365150329,1749496244783,-520.43362242,0.00021643,4]
[365150331,1749496244793,-420.0,0.00021643,4]
[365150333,1749496244802,-460.0,0.00021643,4]
[365150335,1749496244811,-460.0,0.00021643,2]
[365150337,1749496244820,-460.0,0.00021643,4]
[365150339,1749496244830,-460.0,0.00021643,4]
[365150341,1749496244839,-460.0,0.00021643,4]
[365150343,1749496244848,-460.0,0.00021643,4]
[365150345,1749496244858,-460.0,0.00021643,4]
[365150347,1749496244867,-400.0,0.00021643,4]
[365150349,1749496244877,-460.0,0.00021643,4]
[365150351,1749496244888,-400.0,0.00021643,4]
[365150353,1749496244898,-390.0,0.00021643,4]
[365150355,1749496244908,-460.0,0.00021643,4]
[365150357,1749496244917,-450.1771151,0.00021643,4]
[365150359,1749496244927,-460.0,0.00021643,4]
[365150361,1749496244936,-460.0,0.00021643,4]
[365150363,1749496244947,-460.0,0.00021643,4]
[365150365,1749496244956,-460.0,0.00021643,4]
[365150367,1749496244966,-460.0,0.00021643,4]
[365150369,1749496244975,-390.0,0.00021643,4]
[365150371,1749496244984,-460.0,0.00021643,4]
[365150373,1749496244994,-460.0,0.00021643,4]
[365150375,1749496245003,-390.0,0.00021643,4]
[365150377,1749496245013,-460.0,0.00021643,4]
[365150379,1749496245023,-460.0,0.00021643,4]
[365150381,1749496245032,-1473.1,0.00021643,4]
[365150383,1749496245045,-460.0,0.00021643,4]
[365150386,1749496245055,-460.0,0.00021643,4]
[365150388,1749496245065,-463.25531892,0.00021643,4]
[365150389,1749496245076,-1513.21,0.00021643,4]
[365150392,1749496245086,-1123.37,0.00021643,4]
[365150394,1749496245096,-598.28,0.00021643,4]
[365150396,1749496245106,-2145.91,0.00021643,4]
[365150397,1749496245115,-460.0,0.00021643,4]
[365150401,1749496245125,-440.0,0.00021643,4]
[365150403,1749496245138,-460.0,0.00021643,4]
[365150406,1749496245149,-460.0,0.00021643,4]
[365150407,1749496245158,-460.0,0.00021643,4]
[365150419,1749496245259,-778.46,0.00021643,4]
[365150421,1749496245269,-460.0,0.00021643,4]
[365150423,1749496245279,-460.0,0.00021643,4]
[365150425,1749496245288,-460.0,0.00021643,4]
[365150427,1749496245298,-685.77,0.00021643,4]
[365150429,1749496245307,-460.0,0.00021643,4]
[365150431,1749496245317,-460.0,0.00021643,4]
[365150433,1749496245326,-460.0,0.00021643,4]
[365150436,1749496245337,-460.0,0.00021643,4]
[365150438,1749496245348,-1049.59,0.00021643,4]
[365150440,1749496245358,-460.0,0.00021643,4]
[365150442,1749496245368,-1126.7,0.00021643,4]
[365150444,1749496245377,-446.00547333,0.00021643,4]
[365150446,1749496245387,-904.42,0.00021643,4]
[365150448,1749496245397,-277.02726689,0.00021643,4]
[365150449,1749496245407,-460.0,0.00021643,4]
[365150451,1749496245416,-460.0,0.00021643,4]
[365150453,1749496245426,-460.0,0.00021643,4]
[365150456,1749496245436,-460.0,0.00021643,4]
[365150458,1749496245446,-460.0,0.00021643,4]
[365150460,1749496245455,-617.48,0.00021643,4]
[365150462,1749496245465,-460.0,0.00021643,4]
[365150464,1749496245474,-460.0,0.00021643,4]
[365150466,1749496245484,-460.0,0.00021643,4]
[365150467,1749496245493,-562.47,0.00021643,4]
[365150469,1749496245503,-2182.65,0.00021643,4]
[365150471,1749496245513,-248.09466874,0.00021643,4]
[365150474,1749496245524,-741.01,0.00021643,4]
[365150476,1749496245535,-460.0,0.00021643,4]
[365150478,1749496245545,-460.0,0.00021643,4]
[365150479,1749496245554,-460.0,0.00021643,4]
[365150482,1749496245564,-460.0,0.00021643,4]
[365150484,1749496245574,-460.0,0.00021643,4]
[365150486,1749496245584,-1300.38,0.00021643,4]
[365150488,1749496245594,-460.0,0.00021643,4]
[365150490,1749496245603,-460.0,0.00021643,4]
[365150491,1749496245613,-2211.48,0.00021643,4]
[365150494,1749496245623,-460.0,0.00021643,4]
[365150496,1749496245633,-460.0,0.00021643,4]
[365150498,1749496245643,-460.0,0.00021643,4]
[365150500,1749496245652,-460.0,0.00021643,4]
[365150502,1749496245662,-460.0,0.00021643,4]
[365150504,1749496245672,-460.0,0.00021643,4]
[365150505,1749496245681,-380.0,0.00021643,4]
[365150507,1749496245691,-2183.93,0.00021643,4]
[365150509,1749496245700,-556.36,0.00021643,4]
[365150512,1749496245710,-589.97,0.00021643,4]
[365150513,1749496245720,-14493.64,0.00021643,4]
[365150516,1749496245730,-460.0,0.00021643,4]
[365150518,1749496245740,-2815.17,0.00021643,4]
[365150520,1749496245750,-460.0,0.00021643,4]
[365150522,1749496245759,-580.65,0.00021643,4]
[365150524,1749496245769,-2252.96,0.00021643,4]
[365150526,1749496245779,-410.0,0.00021643,4]
[365150528,1749496245788,-375.0,0.00021643,4]
[365150530,1749496245798,-440.0,0.00021643,4]
[365150532,1749496245807,-460.0,0.00021643,4]
[365150534,1749496245816,-250.9999159,0.00021733,2]
[365150536,1749496245826,-156.587,0.00021733,2]
[365150538,1749496245835,-16000.0,0.00021733,2]
[365150540,1749496245846,-12111.94027637,0.00021733,2]
[365150542,1749496245856,-500.0,0.00021745,4]
[365150544,1749496245866,-11856.04170836,0.00021746,2]
[365150546,1749496245875,-160.0,0.0002175,2]
[365150548,1749496245885,-500.0,0.00021916,4]
[365150550,1749496245895,-500.0,0.00021916,4]
[365150552,1749496245904,-500.0,0.00021916,3]
[365150554,1749496245914,-500.0,0.00021916,4]
[365150556,1749496245923,-500.0,0.00021916,4]
[365150558,1749496245933,-500.0,0.00021916,4]
[365150560,1749496245942,-460.0,0.00021917,4]
[365150562,1749496245951,-460.0,0.00021917,4]
[365150564,1749496245961,-205.61300003,0.00021917,4]
[365150566,1749496245971,-400.0,0.00021917,4]
[365150568,1749496245981,-460.0,0.00021917,4]
[365150570,1749496245990,-400.0,0.00021917,4]
[365150572,1749496246000,-460.0,0.00021917,4]
[365150574,1749496246010,-460.0,0.00021917,2]
[365150576,1749496246020,-380.0,0.00021917,4]
[365150578,1749496246030,-460.0,0.00021917,4]
[365150580,1749496246041,-400.0,0.00021917,4]
[365150582,1749496246050,-460.0,0.00021917,4]
[365150584,1749496246060,-500.0,0.00021917,2]
[365150586,1749496246070,-460.0,0.00021917,4]
[365150588,1749496246080,-590.95651065,0.00021917,4]
[365150590,1749496246092,-380.0,0.00021917,4]
[365150592,1749496246102,-300.0,0.00021917,4]
[365150594,1749496246112,-500.82255718,0.00021917,4]
[365150596,1749496246121,-460.0,0.00021917,4]
[365150598,1749496246131,-460.0,0.00021917,4]
[365150600,1749496246143,-570.98783582,0.00021917,4]
[365150602,1749496246152,-400.0,0.00021917,4]
[365150604,1749496246162,-460.0,0.00021917,4]
[365150606,1749496246172,-460.0,0.00021917,4]
[365150608,1749496246183,-330.0,0.00021917,4]
[365150610,1749496246192,-1473.1,0.00021917,4]
[365150612,1749496246201,-460.0,0.00021917,4]
[365150614,1749496246210,-460.0,0.00021917,4]
[365150616,1749496246220,-1513.21,0.00021917,4]
[365150618,1749496246230,-1123.37,0.00021917,4]
[365150620,1749496246239,-598.28,0.00021917,4]
[365150622,1749496246249,-2145.91,0.00021917,4]
[365150624,1749496246258,-460.0,0.00021917,4]
[365150626,1749496246267,-460.0,0.00021917,4]
[365150628,1749496246277,-460.0,0.00021917,4]
[365150630,1749496246287,-460.0,0.00021917,4]
[365150632,1749496246304,-778.46,0.00021917,4]
[365150635,1749496246314,-365.8611539,0.00021917,4]
[365150637,1749496246325,-460.0,0.00021917,4]
[365150639,1749496246335,-193.29837282,0.00021917,4]
[365150641,1749496246345,-685.77,0.00021917,4]
[365150643,1749496246354,-380.0,0.00021917,4]
[365150645,1749496246364,-460.0,0.00021917,4]
[365150647,1749496246373,-460.0,0.00021917,4]
[365150649,1749496246383,-460.0,0.00021917,4]
[365150651,1749496246393,-1049.59,0.00021917,4]
[365150653,1749496246403,-460.0,0.00021917,4]
[365150655,1749496246412,-1126.7,0.00021917,4]
[365150657,1749496246422,-904.42,0.00021917,4]
[365150659,1749496246432,-460.0,0.00021917,4]
[365150661,1749496246442,-340.0,0.00021917,4]
[365150663,1749496246451,-460.0,0.00021917,4]
[365150665,1749496246460,-240.0,0.00021917,4]
[365150667,1749496246469,-460.0,0.00021917,4]
[365150669,1749496246478,-617.48,0.00021917,4]
[365150671,1749496246488,-460.0,0.00021917,4]
[365150673,1749496246497,-279.15417083,0.00021917,4]
[365150675,1749496246507,-562.47,0.00021917,4]
[365150677,1749496246517,-2182.65,0.00021917,4]
[365150679,1749496246527,-741.01,0.00021917,4]
[365150681,1749496246536,-441.58155596,0.00021917,4]
[365150683,1749496246546,-460.0,0.00021917,4]
[365150684,1749496246555,-460.0,0.00021917,4]
[365150686,1749496246566,-460.0,0.00021917,4]
[365150688,1749496246576,-420.0,0.00021917,4]
[365150690,1749496246585,-1300.38,0.00021917,4]
[365150692,1749496246595,-424.03042737,0.00021917,4]
[365150694,1749496246604,-440.0,0.00021917,4]
[365150696,1749496246614,-2211.48,0.00021917,4]
[365150698,1749496246624,-460.0,0.00021917,4]
[365150700,1749496246634,-440.0,0.00021917,4]
[365150702,1749496246644,-460.0,0.00021917,4]
[365150704,1749496246654,-334.46709446,0.00021917,4]
[365150706,1749496246663,-460.0,0.00021917,4]
[365150708,1749496246674,-440.0,0.00021917,4]
[365150710,1749496246684,-2183.93,0.00021917,4]
[365150712,1749496246694,-556.36,0.00021917,4]
[365150714,1749496246704,-500.0,0.00021917,4]
[365150716,1749496246714,-500.0,0.00021917,4]
[365150717,1749496246724,-500.0,0.00021917,4]
[365150718,1749496246734,-500.0,0.00021917,4]
[365150719,1749496246744,-589.97,0.00021917,4]
[365150720,1749496246753,-14493.64,0.00021917,4]
[365150722,1749496246763,-460.0,0.00021917,4]
[365150724,1749496246773,-2815.17,0.00021917,4]
[365150726,1749496246783,-282.19381492,0.00021917,4]
[365150728,1749496246792,-580.65,0.00021917,4]
[365150729,1749496246802,-2252.96,0.00021917,4]
[365150731,1749496246813,-460.0,0.00021917,4]
[365150734,1749496246823,-500.0,0.00021921,2]
[365150736,1749496246833,-1000.0,0.00022,22]
[365150738,1749496246842,-174.0,0.00022,2]
[365150739,1749496246852,-161.0,0.00022,2]
[365150741,1749496246862,-171.0,0.00022,2]
[365150743,1749496246872,-735.48935513,0.00022017,2]
[365150745,1749496246882,-1564.36874902,0.0002209,2]
[365150748,1749496246893,-1000.0,0.00022168,2]
[365150750,1749496246903,-207.4,0.00022171,2]
[365150752,1749496246914,-417.14724398,0.00022171,2]
[365150753,1749496246923,-1688.0,0.00022171,2]
[365150756,1749496246933,-500.0,0.0002219,4]
[365150758,1749496246943,-233.98697092,0.0002219,4]
[365150760,1749496246953,-500.0,0.0002219,4]
[365150762,1749496246963,-356.41287216,0.0002219,4]
[365150764,1749496246973,-460.0,0.00022191,4]
[365150766,1749496246983,-460.0,0.00022191,4]
[365150767,1749496246992,-460.0,0.00022191,4]
[365150768,1749496247001,-320.0,0.00022191,4]
[365150769,1749496247009,-460.0,0.00022191,2]
[365150770,1749496247019,-380.0,0.00022191,4]
[365150771,1749496247028,-410.0,0.00022191,4]
[365150772,1749496247036,-460.0,0.00022191,4]
[365150773,1749496247045,-460.0,0.00022191,4]
[365150774,1749496247054,-448.74312294,0.00022191,4]
[365150775,1749496247063,-460.0,0.00022191,4]
[365150776,1749496247073,-460.0,0.00022191,4]
[365150777,1749496247082,-1473.1,0.00022191,4]
[365150778,1749496247091,-460.0,0.00022191,4]
[365150779,1749496247101,-460.0,0.00022191,4]
[365150780,1749496247110,-1513.21,0.00022191,4]
[365150781,1749496247119,-1123.37,0.00022191,4]
[365150782,1749496247128,-598.28,0.00022191,4]
[365150783,1749496247141,-2145.91,0.00022191,4]
[365150784,1749496247151,-460.0,0.00022191,4]
[365150785,1749496247161,-256.38224862,0.00022191,4]
[365150786,1749496247171,-460.0,0.00022191,4]
[365150790,1749496247262,-153.84600202,0.00022191,4]
[365150792,1749496247274,-778.46,0.00022191,4]
[365150794,1749496247284,-460.0,0.00022191,4]
[365150796,1749496247295,-685.77,0.00022191,4]
[365150798,1749496247304,-460.0,0.00022191,4]
[365150800,1749496247314,-460.0,0.00022191,4]
[365150802,1749496247324,-460.0,0.00022191,4]
[365150804,1749496247334,-1049.59,0.00022191,4]
[365150806,1749496247343,-352.12,0.00022191,4]
[365150808,1749496247353,-1126.7,0.00022191,4]
[365150810,1749496247362,-904.42,0.00022191,4]
[365150812,1749496247372,-460.0,0.00022191,4]
[365150814,1749496247382,-460.0,0.00022191,4]
[365150816,1749496247392,-460.0,0.00022191,4]
[365150818,1749496247402,-617.48,0.00022191,4]
[365150820,1749496247411,-460.0,0.00022191,4]
[365150822,1749496247421,-562.47,0.00022191,4]
[365150824,1749496247430,-2182.65,0.00022191,4]
[365150826,1749496247440,-741.01,0.00022191,4]
[365150827,1749496247450,-460.0,0.00022191,4]
[365150830,1749496247459,-420.0,0.00022191,4]
[365150832,1749496247469,-460.0,0.00022191,4]
[365150833,1749496247479,-1300.38,0.00022191,4]
[365150835,1749496247488,-2211.48,0.00022191,4]
[365150837,1749496247498,-460.0,0.00022191,4]
[365150840,1749496247507,-460.0,0.00022191,4]
[365150842,1749496247518,-512.61918382,0.00022191,4]
[365150844,1749496247528,-2183.93,0.00022191,4]
[365150846,1749496247539,-556.36,0.00022191,4]
[365150848,1749496247549,-500.0,0.00022191,4]
[365150849,1749496247559,-589.97,0.00022191,4]
[365150852,1749496247569,-14493.64,0.00022191,4]
[365150854,1749496247581,-460.0,0.00022191,4]
[365150856,1749496247591,-2815.17,0.00022191,4]
[365150858,1749496247600,-580.65,0.00022191,4]
[365150860,1749496247610,-2252.96,0.00022191,4]
[365150862,1749496247620,-460.0,0.00022191,4]
[365150864,1749496247630,-2430.6,0.00022211,2]
[365150866,1749496247640,-160.54330173,0.00022255,2]
[365150868,1749496247650,-187.63960126,0.00022255,2]
[365150870,1749496247660,-334.32475438,0.00022256,2]
[365150872,1749496247670,-16000.0,0.00022281,2]
[365150874,1749496247679,-974.9,0.000223,7]
[365150876,1749496247688,-2032.32,0.000224,7]
[365150878,1749496247699,-1242.4,0.00022455,3]
[365150880,1749496247708,-621.2,0.00022455,3]
[365150882,1749496247718,-310.6,0.00022455,3]
[365150884,1749496247728,-310.6,0.00022455,3]
[365150886,1749496247737,-500.0,0.00022464,4]
[365150888,1749496247747,-460.0,0.00022465,4]
[365150890,1749496247757,-460.0,0.00022465,4]
[365150892,1749496247766,-460.0,0.00022465,4]
[365150894,1749496247776,-460.0,0.00022465,2]
[365150896,1749496247785,-400.0,0.00022465,2]
[365150898,1749496247795,-400.0,0.00022465,2]
[365150900,1749496247805,-221.23862199,0.00022465,2]
[365150902,1749496247815,-500.0,0.00022465,2]
[365150904,1749496247826,-460.0,0.00022465,4]
[365150906,1749496247835,-460.0,0.00022465,4]
[365150908,1749496247845,-460.0,0.00022465,4]
[365150910,1749496247854,-460.0,0.00022465,4]
[365150912,1749496247864,-1473.1,0.00022465,4]
[365150914,1749496247873,-460.0,0.00022465,4]
[365150916,1749496247883,-420.0,0.00022465,4]
[365150917,1749496247892,-1513.21,0.00022465,4]
[365150919,1749496247901,-1123.37,0.00022465,4]
[365150921,1749496247911,-598.28,0.00022465,4]
[365150923,1749496247920,-2145.91,0.00022465,4]
[365150925,1749496247930,-460.0,0.00022465,4]
[365150927,1749496247940,-460.0,0.00022465,4]